Cogmind - Beta 13 @@@ ROGUE MODE // 2024.07.06 @ 22:08:26 Player: sinsee Result: Destroyed by G-47 Trooper with Particle Gun Performance ------------- Evolutions (2) 1000 Regions Visited (6) 1200 Robots Destroyed (23) 115 Value Destroyed (805) 805 Prototype IDs (2) 40 Alien Tech Used (0) 0 Bonus (0) 0 TOTAL SCORE: 3160 Bonus ------- None Cogmind --------- Core Integrity 0/550 Matter 134/300 Energy 22/100 System Corruption 0% Temperature Critical (1095) Movement Core (100) Ox1 Location -8/Materials Parts ------- > --- POWER (1) -------- (None) > --- PROPULSION (3) --- (None) > --- UTILITY (3) ------ Small Storage Unit > --- WEAPON (4) ------- (None) > --- INVENTORY (8) ---- Light Nuclear Core Aluminum Leg Aluminum Leg Medium Matter Pod (100) Heavy Assault Rifle Flak Cannon Peak State ------------ > --- POWER ------------ Improved Ion Engine > --- PROPULSION ------- Aluminum Leg Aluminum Leg Aluminum Leg > --- UTILITY ---------- Improved Heat Sink Small Storage Unit Medium Armor Plating > --- WEAPON ----------- Field Laser Precision Beam Rifle Precision Beam Rifle Advanced Beam Cannon > --- INVENTORY -------- Light Nuclear Core Aluminum Leg Aluminum Leg Medium Matter Pod Heavy Assault Rifle Flak Cannon Grenade Launcher [Rating: 26] Favorites ----------- Power Light Ion Engine Engine Light Ion Engine Propulsion Aluminum Leg Treads Light Treads Leg Aluminum Leg Utility Small Storage Unit Device Improved Heat Sink Storage Small Storage Unit Protection Medium Armor Plating Weapon Precision Beam Rifle Energy Gun Precision Beam Rifle Energy Cannon Advanced Beam Cannon Ballistic Gun Light Assault Rifle Ballistic Cannon Improved Light Cannon Launcher Grenade Launcher Build | -11 -10 -9 -9 -9 -8 -8 ------- Run | Yrd Mat Mat Min Exi Min Mat Slots Evolved 4 | . . 2 . . . 2 Power . | . . . . . . . Propulsion 1 | . . 1 . . . . Utility 1 | . . 1 . . . . Weapon 2 | . . . . . . 2 Parts Attached 35 | 6 2 10 8 . . 9 Power 3 | 1 1 1 . . . . Engine 3 | 1 1 1 . . . . Core . | . . . . . . . Reactor . | . . . . . . . Propulsion 10 | 2 . 3 5 . . . Treads 2 | 2 . . . . . . Leg 8 | . . 3 5 . . . Wheel . | . . . . . . . Hover . | . . . . . . . Flight . | . . . . . . . Utility 4 | 1 1 1 1 . . . Device 1 | . 1 . . . . . Storage 1 | 1 . . . . . . Processor . | . . . . . . . Hackware . | . . . . . . . Protection 2 | . . 1 1 . . . Artifact . | . . . . . . . Weapon 18 | 2 . 5 2 . . 9 Energy Gun 6 | . . 3 2 . . 1 Energy Cannon 2 | . . . . . . 2 Ballistic Gun 4 | 2 . . . . . 2 Ballistic Cannon 5 | . . 2 . . . 3 Launcher 1 | . . . . . . 1 Special Weapon . | . . . . . . . Impact Weapon . | . . . . . . . Slashing Weapon . | . . . . . . . Piercing Weapon . | . . . . . . . Special Melee Weapon . | . . . . . . . Unidentified Prototypes 2 | . . 1 . . . 1 Parts Lost 11 | . 1 . 1 . . 9 Power 2 | . 1 . . . . 1 Propulsion 3 | . . . . . . 3 Utility 3 | . . . 1 . . 2 Weapon 3 | . . . . . . 3 Highest Loss Streak 8 | . 1 . 1 . . 8 To Critical Strikes . | . . . . . . . Average Slot Usage (%) 94 | . 95 90 99 100 100 90 Engine 11 | . 13 11 11 11 11 8 Treads 12 | . 28 15 . . . . Leg 14 | . . 10 33 33 33 23 Device 10 | . 10 11 11 11 11 5 Storage 11 | . 14 11 11 11 11 9 Protection 7 | . . 10 10 11 11 8 Energy Gun 12 | . . 10 22 22 22 23 Ballistic Gun 8 | . 28 3 . . . 2 Ballistic Cannon 3 | . . 8 . . . 1 Naked Turns . | . . . . . . . Heaviest Build 33 | 10 11 24 24 24 24 33 Greatest Support 40 | 40 40 40 30 30 30 30 Greatest Overweight (x) 9 | 2 . . . . . 9 Average Overweight (x) . | . . . . . . . Largest Inventory Capacity 8 | 8 8 8 8 8 8 8 Average Capacity 7 | 7 8 8 8 8 8 8 Most Carried 8 | 4 7 8 8 7 7 7 Average Carried 6 | 2 6 7 7 7 7 6 Final Capacity 8 | 8 8 8 8 8 8 8 Final Carried 8 | 4 7 8 7 7 7 6 Class Distribution -------------------- 68% | Mutant 21% | Scavenger-Mutant 9% | Scavenger-Tank Dominant Class ---------------- Mutant | -10/Materials Mutant | -9/Materials Scavenger-Mutant | -9/Mines Scavenger-Mutant | -9/Exiles Scavenger-Mutant | -8/Mines Scavenger-Tank | -8/Materials Resources | -11 -10 -9 -9 -9 -8 -8 ----------- Run | Yrd Mat Mat Min Exi Min Mat Matter Collected 675 | 260 81 155 80 . . 99 Remotely . | . . . . . . . Salvage Created 890 | . 128 353 250 . . 159 Parts 39 | . 8 17 13 . . 1 Haulers Intercepted . | . . . . . . . Recyclers Shooed 2 | . . 2 . . . . Parts Field Recycled . | . . . . . . . Retrieved Matter . | . . . . . . . Parts Self-Destructed . | . . . . . . . Prevented . | . . . . . . . Kills | -11 -10 -9 -9 -9 -8 -8 ------- Run | Yrd Mat Mat Min Exi Min Mat Combat Hostiles Destroyed 21 | . 3 9 6 . . 3 Guns 18 | . 3 8 6 . . 1 Cannons 2 | . . . . . . 2 Classes Destroyed 4 | . 2 2 . . . . Watcher 2 | . 1 1 . . . . Swarmer 3 | . . 3 . . . . Grunt 15 | . 3 4 6 . . 2 Sentry 3 | . . 2 . . . 1 Best Kill Streak 4 | . 2 4 3 . . 2 Combat Bots Only 3 | . 2 3 3 . . 2 Max Kills in Single Turn 2 | . 1 1 2 . . 1 Gunslinging 1 | . . . 1 . . . Exploded . | . . . . . . . Melee . | . . . . . . . Uniques/NPCs Destroyed . | . . . . . . . Combat | -11 -10 -9 -9 -9 -8 -8 -------- Run | Yrd Mat Mat Min Exi Min Mat Hostile Shots Fired 152 | . 28 33 26 . . 65 Missed 34 | . 10 10 3 . . 11 Damage Taken 2135 | . 230 300 303 . . 1302 Core 628 | . 31 8 23 . . 566 Absorbed by Shields . | . . . . . . . Core Remaining (%) 93 | 100 87 . . . 92 . Volleys Fired 64 | . 15 22 11 . . 16 Largest 4 | . 2 2 2 . . 4 Hottest 253 | . 40 122 122 . . 253 Shots Fired 140 | . 30 44 22 . . 44 Gun 117 | . 30 42 22 . . 23 Cannon 23 | . . 2 . . . 21 Launcher . | . . . . . . . Special . | . . . . . . . Kinetic 37 | . 30 2 . . . 5 Thermal 103 | . . 42 22 . . 39 Explosive . | . . . . . . . Electromagnetic . | . . . . . . . Robot Hit Streak 23 | . 6 17 23 . . 4 Robot Miss Streak 10 | . 6 3 . . . 10 Penetration Max . | . . . . . . . Secondary Targets 3 | . 1 . 2 . . . Max Gunslinging Chain 1 | . 1 . 1 . . . Shots Hit Robots 95 | . 17 33 22 . . 23 Core Hits 41 | . 10 14 8 . . 9 Critical Kills . | . . . . . . . Critical Parts Destroyed . | . . . . . . . Critical Strikes 7 | . . 2 3 . . 2 Burn 7 | . . 2 3 . . 2 Melee Attacks . | . . . . . . . Impact . | . . . . . . . Slashing . | . . . . . . . Piercing . | . . . . . . . Sneak Attacks . | . . . . . . . Combat Hostiles . | . . . . . . . Follow-up Attacks . | . . . . . . . Damage Inflicted 1537 | . 152 605 376 . 11 393 Guns 1316 | . 152 566 376 . . 222 Cannons 195 | . . 24 . . . 171 Explosions . | . . . . . . . Melee . | . . . . . . . Ramming 26 | . . 15 . . 11 . Kinetic 202 | . 152 24 . . . 26 Thermal 1309 | . . 566 376 . . 367 Explosive . | . . . . . . . Electromagnetic . | . . . . . . . Impact . | . . . . . . . Slashing . | . . . . . . . Piercing . | . . . . . . . Highest Corruption . | . . . . . . . Average Corruption . | . . . . . . . Corruption Purged . | . . . . . . . Corruption Blocked . | . . . . . . . Overload Shots . | . . . . . . . Overflow Damage 4 | . . . . . . 4 Projectiles 4 | . . . . . . 4 Explosions . | . . . . . . . Melee . | . . . . . . . Knockbacks 4 | . . 1 . . . 3 Impact . | . . . . . . . Kinetic 3 | . . 1 . . . 2 Secondary 1 | . . . . . . 1 Self-Inflicted Damage . | . . . . . . . Shots . | . . . . . . . Rammed 3 | . 1 2 . . . . Targets Rammed 11 | . 1 7 . . 3 . Kicked 8 | . . 5 . . 3 . Crushed . | . . . . . . . Highest Temperature 1489 | . 22 192 138 . . 1489 Average Temperature 430 | . 10 63 72 . . 1060 Received Heat Transfer 912 | . 168 123 198 . . 423 Effects 43 | . . . . . . 43 Shutdowns 6 | . . . . . . 6 Energy Bleed 4 | . . . . . . 4 Interference 7 | . . . . . . 7 Matter Decay 6 | . . . . . . 6 Short Circuit 4 | . . . . . . 4 Damage (minor) 6 | . . . . . . 6 Damage (major) 4 | . . . . . . 4 Damage (core) 6 | . . . . . . 6 Siege Activations . | . . . . . . . Robots Corrupted . | . . . . . . . Combat Hostiles . | . . . . . . . Parts Fried . | . . . . . . . Impact Corruptions . | . . . . . . . Robots Melted 1 | . . 1 . . . . Combat Hostiles 1 | . . 1 . . . . Parts Melted 9 | . . 6 1 . . 2 Heat Transferred 3293 | . . 1369 1036 . . 888 Parts Sabotaged . | . . . . . . . Parts Stolen . | . . . . . . . Parts Stripped . | . . . . . . . Power Chain Reactions . | . . . . . . . Alert | -11 -10 -9 -9 -9 -8 -8 ------- Run | Yrd Mat Mat Min Exi Min Mat Peak Influence 267 | . 125 267 248 . . 70 Initial 103 | . . 9 103 . . . Average 66 | . 52 55 234 . . 18 Maximum Alert Level 1 | . . 1 1 . . . Low Security (%) 85 | 100 100 89 17 . 100 100 Level 1 14 | . . 10 82 . . . Level 2 . | . . . . . . . Level 3 . | . . . . . . . Level 4 . | . . . . . . . Level 5 . | . . . . . . . High Security . | . . . . . . . Max Security . | . . . . . . . Squads Dispatched 2 | . 1 1 . . . . Investigation 1 | . . 1 . . . . Extermination . | . . . . . . . Reinforcement 1 | . 1 . . . . . Assault . | . . . . . . . Garrison . | . . . . . . . Intercept . | . . . . . . . Searches Triggered . | . . . . . . . Construction Impeded . | . . . . . . . Haulers Reinforced . | . . . . . . . Active Scanning Responses . | . . . . . . . Cargo Convoy Interrupts . | . . . . . . . Stealth | -11 -10 -9 -9 -9 -8 -8 --------- Run | Yrd Mat Mat Min Exi Min Mat Distress Signals 2 | . . 1 . . . 1 Communications Jammed . | . . . . . . . Distress Signals . | . . . . . . . Times Spotted 37 | . 8 12 6 . . 11 Peak Tracking Total 11 | . 2 4 3 . . 11 Tactical Retreats 1 | . 1 . . . . . Traps | -11 -10 -9 -9 -9 -8 -8 ------- Run | Yrd Mat Mat Min Exi Min Mat Traps Triggered 1 | . . 1 . . . . Indirectly . | . . . . . . . Trap Hack Attempts . | . . . . . . . Triggered . | . . . . . . . Disarmed . | . . . . . . . Reprogrammed . | . . . . . . . Reused . | . . . . . . . Traps Extracted . | . . . . . . . Installed . | . . . . . . . Triggered . | . . . . . . . Machines | -11 -10 -9 -9 -9 -8 -8 ---------- Run | Yrd Mat Mat Min Exi Min Mat Machines Disabled 2 | . . 1 . . . 1 Max in Single Turn 1 | . . 1 . . . 1 Machines Repaired . | . . . . . . . Machines Dismantled . | . . . . . . . Machines Sabotaged . | . . . . . . . Overloaded Fab Kills . | . . . . . . . Hacking | -11 -10 -9 -9 -9 -8 -8 --------- Run | Yrd Mat Mat Min Exi Min Mat Machines Accessed 6 | . 1 5 . . . . Terminals 4 | . 1 3 . . . . Fabricators . | . . . . . . . Repair Stations 1 | . . 1 . . . . Recycling Units 1 | . . 1 . . . . Scanalyzers . | . . . . . . . Garrison Access . | . . . . . . . Total Hacks 14 | . 4 10 . . . . Successful 6 | . 1 5 . . . . Failed 8 | . 3 5 . . . . Catastrophic 2 | . . 2 . . . . Database Lockouts . | . . . . . . . Manual . | . . . . . . . Terminals 10 | . 4 6 . . . . Fabricators . | . . . . . . . Repair Stations 3 | . . 3 . . . . Recycling Units 1 | . . 1 . . . . Scanalyzers . | . . . . . . . Garrison Access . | . . . . . . . Terminal Hacks 4 | . 1 3 . . . . Record 4 | . 1 3 . . . . Fabricator Hacks . | . . . . . . . Repair Station Hacks 1 | . . 1 . . . . Scan Component 1 | . . 1 . . . . Recycling Unit Hacks 1 | . . 1 . . . . Process 1 | . . 1 . . . . Scanalyzer . | . . . . . . . Garrison Access Hacks . | . . . . . . . Unauthorized Hacks . | . . . . . . . Terminals . | . . . . . . . Fabricators . | . . . . . . . Repair Stations . | . . . . . . . Recycling Units . | . . . . . . . Scanalyzers . | . . . . . . . Garrison Access . | . . . . . . . Data Cores Recovered . | . . . . . . . Used . | . . . . . . . Hacking Detections 4 | . . 4 . . . . Full Trace Events . | . . . . . . . Feedback Events . | . . . . . . . Feedback Blocked . | . . . . . . . Robot Schematics Acquired . | . . . . . . . Robots Built . | . . . . . . . Authchips . | . . . . . . . Time . | . . . . . . . Total Robot Build Rating . | . . . . . . . Part Schematics Acquired . | . . . . . . . Parts Built . | . . . . . . . Authchips . | . . . . . . . Time . | . . . . . . . Total Part Build Rating . | . . . . . . . Parts Repaired . | . . . . . . . Time . | . . . . . . . Parts Recycled . | . . . . . . . Recycled Matter 1 | . . 1 . . . . Retrieved Matter . | . . . . . . . Retrieved Components . | . . . . . . . Parts Scanalyzed . | . . . . . . . Part Schematics Acquired . | . . . . . . . Parts Damaged . | . . . . . . . Bothacking | -11 -10 -9 -9 -9 -8 -8 ------------ Run | Yrd Mat Mat Min Exi Min Mat Used RIF Installer . | . . . . . . . Robots Hacked . | . . . . . . . Non-combat . | . . . . . . . Combat . | . . . . . . . Robot Hacks Applied . | . . . . . . . Relay Couplers Released . | . . . . . . . Fabnet Peak Effective % . | . . . . . . . Robots Rewired . | . . . . . . . Allies Hacked . | . . . . . . . Hacks Repelled . | . . . . . . . Allies | -11 -10 -9 -9 -9 -8 -8 -------- Run | Yrd Mat Mat Min Exi Min Mat Total Allies . | . . . . . . . Largest Group . | . . . . . . . Highest-Rated Group . | . . . . . . . Highest-Rated Ally . | . . . . . . . Total Orders . | . . . . . . . Ally Attacks . | . . . . . . . Total Damage . | . . . . . . . Kills . | . . . . . . . Allies Corrupted . | . . . . . . . Allies Melted . | . . . . . . . Intel | -11 -10 -9 -9 -9 -8 -8 ------- Run | Yrd Mat Mat Min Exi Min Mat Robot Analysis Total . | . . . . . . . Derelict Logs Recovered . | . . . . . . . Drone Launches . | . . . . . . . Drone Recoveries . | . . . . . . . Exploration | -11 -10 -9 -9 -9 -8 -8 ------------- Run | Yrd Mat Mat Min Exi Min Mat Turns Passed 1912 | 94 469 659 247 46 167 230 Spaces Moved 1091 | 56 251 362 163 39 137 83 Core 14 | 10 . . . . . 4 Treads 547 | 46 251 250 . . . . Legs 530 | . . 112 163 39 137 79 Wheels . | . . . . . . . Hover . | . . . . . . . Flight . | . . . . . . . Fastest Speed 50 | 50 160 120 120 120 120 100 Average Speed 143 | 147 160 147 120 120 120 171 Slowest Speed 500 | 160 160 160 120 120 120 500 Overloaded Moves . | . . . . . . . Propulsion Burnouts . | . . . . . . . Robots Hopped . | . . . . . . . Cave-ins Triggered . | . . . . . . . Exploration Rate (%) 22 | 4 43 24 34 8 29 12 Regions Visited 6 Branch Regions 3 Pre-discovered Areas . | . . . . . . . Known Exits Taken . | . . . . . . . Unknown Exits Taken 6 | 1 1 1 1 1 1 . Scrap Searched . | . . . . . . . Spaces Dug . | . . . . . . . Terrain Destroyed 1 | . . 1 . . . . Melee . | . . . . . . . Projectile 1 | . . 1 . . . . AOE . | . . . . . . . Terrain Rammed . | . . . . . . . Walls Destroyed . | . . . . . . . Machines Disabled . | . . . . . . . Actions | -11 -10 -9 -9 -9 -8 -8 --------- Run | Yrd Mat Mat Min Exi Min Mat Total 1308 | 65 293 442 195 38 139 136 Wait 72 | . 21 23 4 . . 24 Move 1085 | 55 250 361 162 38 136 83 Hop . | . . . . . . . Pick Up 20 | 4 4 7 3 . . 2 Fast Attach 14 | 6 1 7 . . . . Attach 8 | . 1 2 1 . . 4 Detach 1 | . . . . . . 1 Swap 13 | . . 1 7 . . 5 Drop 20 | . . 12 7 . . 1 Fire 64 | . 15 22 11 . . 16 Melee . | . . . . . . . Ram . | . . . . . . . Kick 8 | . . 5 . . 3 . Crush 3 | . 1 2 . . . . Escape Stasis . | . . . . . . . Rewire . | . . . . . . . Trap . | . . . . . . . Miscellaneous . | . . . . . . . Route ------- -11/Scrapyard -10/Materials -9/Materials -9/Mines -9/Exiles -8/Mines (discovered 2 exits: [*Mat x2]) -8/Materials History --------- Turn | Location | Event 7 | -11/Scrapyard | Discovered new exit (range 16) 95 | -11/Scrapyard | Entered Materials 318 | -10/Materials | Build established: Mutant 554 | -10/Materials | Discovered new exit (range 5) 564 | -10/Materials | Entered another Materials area 564 | -9/Materials | Evolved 2 slots: Propulsion x1, Utility x1 1205 | -9/Materials | Discovered new exit (range 15) 1223 | -9/Materials | Entered Mines 1461 | -9/Mines | Deemed a non-threat by the Exiles lab entrance 1463 | -9/Mines | Discovered new exit (range 5) 1470 | -9/Mines | Entered Exiles 1499 | -9/Exiles | Discovered new exit (range 15) 1516 | -9/Exiles | Entered Mines 1542 | -8/Mines | Discovered new exit (range 13) 1574 | -8/Mines | Build established: Scavenger-Mutant 1671 | -8/Mines | Discovered new exit (range 8) 1683 | -8/Mines | Entered Materials 1683 | -8/Materials | Evolved 2 slots: Weapon x2 1894 | -8/Materials | Core integrity fell below 50% 1910 | -8/Materials | Core integrity fell below 20% 1913 | -8/Materials | Destroyed by G-47 Trooper with Particle Gun Last Messages --------------- 01897_ Imp. Ion Engine destroyed. 01898_ K-01 Serf collects debris. 01901_ Overheating: Core damaged (-55). 01901_ K-01 Serf collects debris. 01902_ Med. Armor Plating destroyed. 01904_ Broken Aluminum Leg destroyed. 01904_ K-01 Serf collects debris. 01905_ Field Laser destroyed. 01906_ Overheating: Core damaged (-66). 01907_ Prc. Beam Rifle destroyed. 01908_ Overheating: Matter decay (-16). 01908_ K-01 Serf collects debris. 01909_ Adv. Beam Cannon broken. 01909_ Overheating: Short circuit. 01909_ Broken Adv. Beam Cannon severed. 01909_ Grenade Launcher destroyed. 01910_ Overheating: Sml. Storage Unit damaged (-12). 01911_ Overheating: Energy bleed (-2). 01911_ K-01 Serf collects debris. 01912_ Acquired 59 matter. Map ----- +----------------------------------------------------+ | ?????????????????????????????????????????????????? | | ?????????????????????????????????????????????????? | | ?????????????????????????????????????????????????? | | ?????????????????????????????????????????????????? | | ?????????????????????????????????????????????????? | | ?????????????????????????????????????????????????? | | ?????????????????????????????????????????????????? | | ?????????????????????????????????????????????????? | | ?????????????????????????????????????????????????? | | ?????????????????????????????????????????????????? | | ?????????????????????????????????????????????????? | | ?????????????????????????????????????????????????? | | ?????????????????????????????????????????????????? | | ????????????????????????????? ?????????????????? | | ????????????????????????????? #????????????????? | | ????????????????????????????? #????????????????? | | ????????????????????????????# +????????????????? | | ???????????????????????????? #????????????????? | | ???????????????????????????? #????????????????? | | ???????????????????????????? #????????????????? | | ????????????????????????????# #????????????????? | | ????????????????????????????# #????????????????? | | ????????????????????#???????# #????????????????? | | ???????????????????## ####### #????????????????? | | ???????????????????# # #????????????????? | | ???????????????????# " @ # #????????????????? | | ???????????????????# " l]# #####+##?????????? | | ???????????????????# "" ggm# #?????????? | | ???????????????????# kg% #?????????? | | ???????????????????# Y # #?????????? | | ???????????????????# "Y" ## ##### + !![ ???? | | ???????????????????# """g## #???? ??????????? | | ???????????????????# ## #???? #?????????? | | ???????????????????########### #???? #?????????? | | ?????????????????????????????# #???? #?????????? | | ?????????????????????????????# #???? #?????????? | | ?????????????????????????????# #???? #?????????? | | ?????????????????????????????# #???# #?????????? | | ??????????????????????????####+##### #?????????? | | ??????????????????????????# # #?????????? | | ??????????????????????????# % # ####??????? | | ??????????????????????????# # ? ??? | | ??????????????????????????# = + ? ??? | | ??????????????????????????# # ?? ??? | | ??????????????????????????# # #???# ??? | | ??????????????????????????# !/ # #???# #??? | | ??????????????????????????# ![ + #???# #??? | | ??????????????????????????# ! # #???# #??? | | ??????????????????????????########## #???# #??? | | ??????????????????????????# """ + #???# #??? | +----------------------------------------------------+ Best States ------------- Heat Dissipation 45 Energy Generation 12 Energy Capacity 265 Matter Stores 300 Matter Capacity 300 Sight Range 16 Terrain Scan Density 10 Armor Coverage 225 Evasion (%) 55 Recoil Reduction 2 Item Schematics ----------------- None Robot Schematics ------------------ None Fabricated ------------ Nothing Alien Tech Used ----------------- None Achievements -------------- None Challenges ------------ None Game ------ Seed LaserSlugWheel Manual? 0 Play Time 00:25:43 Cumulative 8.5 hours Start 2024.07.06 @ 21:04:27 End 2024.07.06 @ 22:08:26 Sessions 1 Manual Loads 0 Difficulty Rogue Special Mode None Game No. 14 Rogue 11 Adventurer 3 Explorer 0 Win Type - Total 0 Types 0/0/0/0/0/0/0/0/0 Lore% 9 Gallery% 13 Achievement% 9 Wizard Run 0 Options --------- Layout 0 ASCII 0 Keyboard 0 Movement Arrows Keybinds 0 Fullscreen 1 Font 18/SmallcapsGlow Map View 38x25 Zoom Use 99% Tactical HUD 1 Map Filters NONE Filters NONE Steam 1 RUN: 27ba8164-b390-4c2a-97e3-b4437e77d2f4